[Event "*** Qualifier 1: Titled Tuesday 3|2 Blitz"]
[Site "Chess.com"]
[Date "2017.04.04"]
[Round "4"]
[White "FearlessKing64"]
[Black "ecwinslow"]
[Result "0-1"]
[WhiteElo "2111"]
[BlackElo "2071"]
[TimeControl "180+2"]
[EndTime "13:52:52 PDT"]
[Termination "ecwinslow won by resignation"]

1. e4 {[%clk 0:03:02]} 1... d6 {[%clk 0:02:59.9]} 2. d4 {[%clk 0:03:02.5]} 2...
Nf6 {[%clk 0:03:00.7]} 3. Nc3 {[%clk 0:03:03.6]} 3... g6 {[%clk 0:03:02]} 4. f4
{[%clk 0:03:03.9]} 4... Bg7 {[%clk 0:03:02.3]} 5. Nf3 {[%clk 0:03:04.9]} 5...
O-O {[%clk 0:03:02.3]} 6. Be2 {[%clk 0:03:06]} 6... c5 {[%clk 0:03:02.3]} 7.
dxc5 {[%clk 0:03:06.4]} 7... Qa5 {[%clk 0:03:03.8]} 8. O-O {[%clk 0:03:07.7]}
8... Qxc5+ {[%clk 0:03:04.3]} 9. Kh1 {[%clk 0:03:09.3]} 9... Bg4 {[%clk
0:03:02.5]} 10. Bd3 {[%clk 0:02:59.5]} 10... Nc6 {[%clk 0:02:57.6]} 11. Qe1
{[%clk 0:02:56.2]} 11... Nb4 {[%clk 0:02:48.8]} 12. Be3 {[%clk 0:02:55.2]} 12...
Nxd3 {[%clk 0:02:49.2]} 13. cxd3 {[%clk 0:02:42.6]} 13... Qh5 {[%clk 0:02:49.3]}
14. Kg1 {[%clk 0:02:29.4]} 14... e6 {[%clk 0:02:29.9]} 15. Nd2 {[%clk
0:02:09.7]} 15... e5 {[%clk 0:02:24.3]} 16. f5 {[%clk 0:01:48.4]} 16... gxf5
{[%clk 0:02:23.8]} 17. h3 {[%clk 0:01:48.9]} 17... f4 {[%clk 0:02:22]} 18. Bf2
{[%clk 0:00:28.6]} 18... Be6 {[%clk 0:01:56.9]} 19. Nf3 {[%clk 0:00:26.1]} 19...
Bxh3 {[%clk 0:01:51.4]} 20. Bh4 {[%clk 0:00:20]} 20... Be6 {[%clk 0:01:45.8]}
21. Kf2 {[%clk 0:00:17.3]} 21... Ng4+ {[%clk 0:01:43.4]} 22. Ke2 {[%clk
0:00:18.6]} 22... Bf6 {[%clk 0:01:30]} 23. Rh1 {[%clk 0:00:18.5]} 23... Qg6
{[%clk 0:01:25.5]} 24. Bxf6 {[%clk 0:00:19.3]} 24... Qxf6 {[%clk 0:01:23.8]} 25.
Qh4 {[%clk 0:00:18.6]} 25... Qxh4 {[%clk 0:01:24]} 26. Rxh4 {[%clk 0:00:20.5]}
26... Nf6 {[%clk 0:01:23.6]} 27. Rah1 {[%clk 0:00:22.4]} 27... Kg7 {[%clk
0:01:23.5]} 28. Ng5 {[%clk 0:00:23.2]} 28... Rh8 {[%clk 0:01:23.5]} 29. Kd2
{[%clk 0:00:21.7]} 29... a6 {[%clk 0:01:20.5]} 30. Rh6 {[%clk 0:00:22.7]} 30...
Rag8 {[%clk 0:01:08.7]} 31. d4 {[%clk 0:00:23.6]} 31... exd4 {[%clk 0:01:01.1]}
32. Ne2 {[%clk 0:00:24.3]} 32... Ng4 {[%clk 0:00:52.2]} 33. Rxh7+ {[%clk
0:00:18.6]} 33... Rxh7 {[%clk 0:00:51.9]} 34. Rxh7+ {[%clk 0:00:20.5]} 34... Kf6
{[%clk 0:00:48.2]} 35. Nxe6 {[%clk 0:00:13]} 35... fxe6 {[%clk 0:00:46.8]} 36.
Nxf4 {[%clk 0:00:11.7]} 36... Ne3 {[%clk 0:00:43.7]} 37. g3 {[%clk 0:00:11.8]}
37... e5 {[%clk 0:00:39.9]} 38. Nh5+ {[%clk 0:00:11.5]} 38... Ke6 {[%clk
0:00:40.5]} 39. Rxb7 {[%clk 0:00:11.8]} 39... Rg5 {[%clk 0:00:39.8]} 40. Ng7+
{[%clk 0:00:09.8]} 40... Kf6 {[%clk 0:00:38]} 41. Ne8+ {[%clk 0:00:10.8]} 41...
Kg6 {[%clk 0:00:39]} 42. Rg7+ {[%clk 0:00:11]} 42... Kh6 {[%clk 0:00:38.9]} 43.
Rxg5 {[%clk 0:00:10.4]} 43... Kxg5 {[%clk 0:00:40.5]} 44. Nxd6 {[%clk
0:00:12.1]} 44... Nf1+ {[%clk 0:00:40.5]} 45. Kd3 {[%clk 0:00:12.2]} 45... Nxg3
{[%clk 0:00:41.9]} 46. Nc4 {[%clk 0:00:10.7]} 46... Kf4 {[%clk 0:00:42.9]} 47.
b4 {[%clk 0:00:11.2]} 47... Nxe4 {[%clk 0:00:43.2]} 48. a4 {[%clk 0:00:11.5]}
48... Nc3 {[%clk 0:00:41.9]} 49. b5 {[%clk 0:00:08.7]} 49... axb5 {[%clk
0:00:37.1]} 50. axb5 {[%clk 0:00:09.6]} 50... Nxb5 {[%clk 0:00:37.9]} 51. Nd2
{[%clk 0:00:11.1]} 51... Nd6 {[%clk 0:00:37.8]} 52. Ke2 {[%clk 0:00:04.6]} 52...
e4 {[%clk 0:00:36.6]} 0-1

[Event "*** Qualifier 1: Titled Tuesday 3|2 Blitz"]
[Site "Chess.com"]
[Date "2017.04.04"]
[Round "4"]
[White "rasmussvane"]
[Black "Alexander_Donchenko"]
[Result "0-1"]
[WhiteElo "2502"]
[BlackElo "2589"]
[TimeControl "180+2"]
[EndTime "13:53:00 PDT"]
[Termination "Alexander_Donchenko won by resignation"]

1. e4 {[%clk 0:03:02]} 1... c5 {[%clk 0:02:59.9]} 2. Nf3 {[%clk 0:03:02.4]} 2...
d6 {[%clk 0:03:00.8]} 3. Bb5+ {[%clk 0:03:03]} 3... Nd7 {[%clk 0:03:02]} 4. O-O
{[%clk 0:02:57.5]} 4... a6 {[%clk 0:03:03]} 5. Bd3 {[%clk 0:02:58.5]} 5... g6
{[%clk 0:03:03.2]} 6. c3 {[%clk 0:02:57.3]} 6... Bg7 {[%clk 0:03:04.8]} 7. Bc2
{[%clk 0:02:57.8]} 7... e5 {[%clk 0:03:05.8]} 8. d4 {[%clk 0:02:55.4]} 8... Ngf6
{[%clk 0:03:07]} 9. Nbd2 {[%clk 0:02:50.5]} 9... O-O {[%clk 0:03:07.7]} 10. d5
{[%clk 0:02:45.2]} 10... b5 {[%clk 0:03:06.2]} 11. a4 {[%clk 0:02:45.4]} 11...
Nb6 {[%clk 0:03:04]} 12. b3 {[%clk 0:02:14.4]} 12... h6 {[%clk 0:02:59.9]} 13.
Re1 {[%clk 0:02:10.1]} 13... Nh5 {[%clk 0:02:58]} 14. Qe2 {[%clk 0:02:06.8]}
14... Nf4 {[%clk 0:02:57.2]} 15. Qf1 {[%clk 0:02:07.6]} 15... Bd7 {[%clk
0:02:56.2]} 16. h3 {[%clk 0:01:39.8]} 16... Qf6 {[%clk 0:02:47.6]} 17. Nh2
{[%clk 0:01:38.1]} 17... h5 {[%clk 0:02:42.7]} 18. Ndf3 {[%clk 0:01:36.1]} 18...
g5 {[%clk 0:02:40.9]} 19. Be3 {[%clk 0:01:31.8]} 19... Bh6 {[%clk 0:02:37.4]}
20. Nd2 {[%clk 0:01:30.1]} 20... Kh8 {[%clk 0:02:33.4]} 21. b4 {[%clk
0:01:29.1]} 21... Rg8 {[%clk 0:02:24.4]} 22. g4 {[%clk 0:01:18.8]} 22... cxb4
{[%clk 0:02:06.7]} 23. Bxb6 {[%clk 0:01:11.1]} 23... bxc3 {[%clk 0:02:07.8]} 24.
Nb3 {[%clk 0:01:03.3]} 24... bxa4 {[%clk 0:02:06.1]} 25. Nc1 {[%clk 0:01:04.4]}
25... Bb5 {[%clk 0:02:04.1]} 26. Nd3 {[%clk 0:00:59]} 26... Rab8 {[%clk
0:01:43.4]} 27. Be3 {[%clk 0:00:59.8]} 27... Qg6 {[%clk 0:01:34]} 28. f3 {[%clk
0:00:57.9]} 28... Bg7 {[%clk 0:01:16.5]} 29. Rec1 {[%clk 0:00:58.3]} 29... Bf6
{[%clk 0:01:15.2]} 30. Bxf4 {[%clk 0:00:40]} 30... exf4 {[%clk 0:01:13]} 31.
Bxa4 {[%clk 0:00:40.8]} 31... Bd4+ {[%clk 0:01:07.2]} 32. Kh1 {[%clk 0:00:40.9]}
32... hxg4 {[%clk 0:01:05.9]} 33. Nxg4 {[%clk 0:00:37.8]} 33... f5 {[%clk
0:01:02]} 34. exf5 {[%clk 0:00:30.3]} 34... Qxf5 {[%clk 0:01:03.9]} 35. Bxb5
{[%clk 0:00:31.4]} 35... axb5 {[%clk 0:01:05.5]} 36. Nh6 {[%clk 0:00:31.3]}
36... Qxd5 {[%clk 0:01:02.3]} 37. Nxg8 {[%clk 0:00:31.7]} 37... Kxg8 {[%clk
0:01:00.6]} 38. Nb4 {[%clk 0:00:30.5]} 38... Qb7 {[%clk 0:00:48.6]} 39. Qg2
{[%clk 0:00:28.2]} 39... Kh8 {[%clk 0:00:46.3]} 40. Rf1 {[%clk 0:00:26.4]} 40...
Bc5 {[%clk 0:00:44.7]} 41. Nd3 {[%clk 0:00:26.5]} 41... Qd5 {[%clk 0:00:43.9]}
42. Nxc5 {[%clk 0:00:26.1]} 42... dxc5 {[%clk 0:00:45.2]} 43. Rad1 {[%clk
0:00:25.6]} 43... Qf5 {[%clk 0:00:45.1]} 44. h4 {[%clk 0:00:18.4]} 44... b4
{[%clk 0:00:39.4]} 45. hxg5 {[%clk 0:00:19.3]} 45... b3 {[%clk 0:00:35]} 46.
Qh2+ {[%clk 0:00:20.5]} 46... Qh7 {[%clk 0:00:32.9]} 47. Rd6 {[%clk 0:00:18.3]}
47... Qxh2+ {[%clk 0:00:33.1]} 48. Kxh2 {[%clk 0:00:19.8]} 48... b2 {[%clk
0:00:33.4]} 49. Kg2 {[%clk 0:00:16.6]} 49... b1=Q {[%clk 0:00:32.5]} 50. Rxb1
{[%clk 0:00:17.5]} 50... Rxb1 {[%clk 0:00:34.4]} 51. Kh3 {[%clk 0:00:13.9]}
51... c2 {[%clk 0:00:34.9]} 52. Kg4 {[%clk 0:00:11.8]} 52... c1=Q {[%clk
0:00:35.7]} 0-1

[Event "*** Qualifier 1: Titled Tuesday 3|2 Blitz"]
[Site "Chess.com"]
[Date "2017.04.04"]
[Round "4"]
[White "superjem123"]
[Black "agser"]
[Result "1-0"]
[WhiteElo "2531"]
[BlackElo "2604"]
[TimeControl "180+2"]
[EndTime "13:53:01 PDT"]
[Termination "superjem123 won on time"]

1. c4 {[%clk 0:03:02]} 1... Nf6 {[%clk 0:03:00.5]} 2. Nc3 {[%clk 0:02:56.9]}
2... e6 {[%clk 0:03:01.2]} 3. e4 {[%clk 0:02:57.7]} 3... d5 {[%clk 0:03:02.4]}
4. e5 {[%clk 0:02:58.9]} 4... d4 {[%clk 0:03:03.7]} 5. exf6 {[%clk 0:03:00.3]}
5... dxc3 {[%clk 0:03:05.3]} 6. bxc3 {[%clk 0:03:02.2]} 6... Qxf6 {[%clk
0:03:06.7]} 7. Nf3 {[%clk 0:03:03.8]} 7... Nc6 {[%clk 0:03:04.7]} 8. Bd3 {[%clk
0:03:02.3]} 8... e5 {[%clk 0:03:04]} 9. Be4 {[%clk 0:03:03.1]} 9... Bf5 {[%clk
0:02:46.7]} 10. Qc2 {[%clk 0:02:50.3]} 10... Bxe4 {[%clk 0:02:42.8]} 11. Qxe4
{[%clk 0:02:52.2]} 11... Qg6 {[%clk 0:02:39.5]} 12. Qxg6 {[%clk 0:02:45.4]}
12... hxg6 {[%clk 0:02:41.4]} 13. d3 {[%clk 0:01:56.3]} 13... f6 {[%clk
0:02:36.1]} 14. Be3 {[%clk 0:01:53]} 14... g5 {[%clk 0:02:35.4]} 15. O-O-O
{[%clk 0:01:52.2]} 15... O-O-O {[%clk 0:02:30.4]} 16. Kc2 {[%clk 0:01:49.9]}
16... Ne7 {[%clk 0:02:24.1]} 17. h3 {[%clk 0:00:47.9]} 17... Nf5 {[%clk
0:02:22.5]} 18. g4 {[%clk 0:00:46.4]} 18... Nxe3+ {[%clk 0:02:22]} 19. fxe3
{[%clk 0:00:48.3]} 19... Bd6 {[%clk 0:02:05.8]} 20. e4 {[%clk 0:00:23]} 20...
Rh6 {[%clk 0:02:01.5]} 21. Rd2 {[%clk 0:00:22.3]} 21... Rdh8 {[%clk 0:01:55.4]}
22. Rdh2 {[%clk 0:00:23.2]} 22... g6 {[%clk 0:01:57]} 23. h4 {[%clk 0:00:23.4]}
23... gxh4 {[%clk 0:01:51]} 24. Rxh4 {[%clk 0:00:25.3]} 24... Bf8 {[%clk
0:01:33.6]} 25. Rxh6 {[%clk 0:00:19.7]} 25... Rxh6 {[%clk 0:01:35.5]} 26. Rxh6
{[%clk 0:00:20.5]} 26... Bxh6 {[%clk 0:01:37.4]} 27. g5 {[%clk 0:00:21.2]} 27...
Bg7 {[%clk 0:01:35.4]} 28. Kd1 {[%clk 0:00:16]} 28... Kd7 {[%clk 0:01:22.3]} 29.
Ke2 {[%clk 0:00:16.2]} 29... f5 {[%clk 0:01:23.4]} 30. Nh4 {[%clk 0:00:15.2]}
30... f4 {[%clk 0:00:16.9]} 31. Nxg6 {[%clk 0:00:15.7]} 31... Ke6 {[%clk
0:00:15.7]} 32. Kf3 {[%clk 0:00:15.3]} 32... Kf7 {[%clk 0:00:13.8]} 33. Nh4
{[%clk 0:00:15.7]} 33... Bf8 {[%clk 0:00:15.3]} 34. Kg4 {[%clk 0:00:17.1]} 34...
Ba3 {[%clk 0:00:15.7]} 35. Kf5 {[%clk 0:00:16.3]} 35... Bd6 {[%clk 0:00:12.5]}
36. Nf3 {[%clk 0:00:14.1]} 36... Kg7 {[%clk 0:00:13.1]} 37. d4 {[%clk
0:00:15.2]} 37... exd4 {[%clk 0:00:13.3]} 38. cxd4 {[%clk 0:00:17.1]} 38... c6
{[%clk 0:00:12]} 39. e5 {[%clk 0:00:18.3]} 39... Be7 {[%clk 0:00:10.5]} 40. Kxf4
{[%clk 0:00:19.5]} 40... a5 {[%clk 0:00:11.7]} 41. Kf5 {[%clk 0:00:19.4]} 41...
b5 {[%clk 0:00:10.1]} 42. cxb5 {[%clk 0:00:20.4]} 42... cxb5 {[%clk 0:00:12]}
43. d5 {[%clk 0:00:22.3]} 43... a4 {[%clk 0:00:12.7]} 44. d6 {[%clk 0:00:23.7]}
44... Bd8 {[%clk 0:00:13.9]} 45. e6 {[%clk 0:00:25]} 45... Kf8 {[%clk
0:00:14.7]} 46. e7+ {[%clk 0:00:25.9]} 46... Bxe7 {[%clk 0:00:15.6]} 47. dxe7+
{[%clk 0:00:27.8]} 47... Kxe7 {[%clk 0:00:17.5]} 48. Nd4 {[%clk 0:00:29.4]}
48... b4 {[%clk 0:00:18.6]} 49. Nc6+ {[%clk 0:00:30.4]} 1-0

[Event "*** Qualifier 1: Titled Tuesday 3|2 Blitz"]
[Site "Chess.com"]
[Date "2017.04.04"]
[Round "4"]
[White "DuleMudule"]
[Black "VladDobrov"]
[Result "0-1"]
[WhiteElo "2577"]
[BlackElo "2530"]
[TimeControl "180+2"]
[EndTime "13:53:03 PDT"]
[Termination "VladDobrov won by resignation"]

1. d4 {[%clk 0:03:02]} 1... Nf6 {[%clk 0:02:59.7]} 2. Nc3 {[%clk 0:03:01.6]}
2... d5 {[%clk 0:02:59.6]} 3. Bf4 {[%clk 0:03:02.8]} 3... a6 {[%clk 0:02:58.9]}
4. Nf3 {[%clk 0:03:00.4]} 4... e6 {[%clk 0:02:59.6]} 5. e3 {[%clk 0:02:59.4]}
5... c5 {[%clk 0:02:59.6]} 6. dxc5 {[%clk 0:02:59.9]} 6... Bxc5 {[%clk
0:02:58.8]} 7. a3 {[%clk 0:03:01.6]} 7... Nc6 {[%clk 0:02:59.1]} 8. Bd3 {[%clk
0:03:03.2]} 8... h6 {[%clk 0:02:55.6]} 9. O-O {[%clk 0:03:03.6]} 9... Nh5 {[%clk
0:02:55.4]} 10. Bg3 {[%clk 0:02:58.6]} 10... Nxg3 {[%clk 0:02:55]} 11. hxg3
{[%clk 0:03:00.5]} 11... f5 {[%clk 0:02:50.9]} 12. Nd4 {[%clk 0:02:40.9]} 12...
O-O {[%clk 0:02:46.7]} 13. Nce2 {[%clk 0:02:14.3]} 13... e5 {[%clk 0:02:43.9]}
14. Nb3 {[%clk 0:02:06.6]} 14... Ba7 {[%clk 0:02:44.1]} 15. Nc3 {[%clk
0:01:35.6]} 15... Be6 {[%clk 0:02:42.2]} 16. Qh5 {[%clk 0:01:36]} 16... Qf6
{[%clk 0:02:31.5]} 17. Rad1 {[%clk 0:01:34.9]} 17... Rad8 {[%clk 0:02:28.3]} 18.
Na4 {[%clk 0:01:27.6]} 18... e4 {[%clk 0:02:25.1]} 19. Be2 {[%clk 0:01:24.2]}
19... d4 {[%clk 0:02:26.2]} 20. Nbc5 {[%clk 0:01:21.4]} 20... Bf7 {[%clk
0:02:26.2]} 21. Qh4 {[%clk 0:01:19.5]} 21... g5 {[%clk 0:02:25.7]} 22. Qh3
{[%clk 0:01:19.8]} 22... b5 {[%clk 0:02:24.3]} 23. Nb7 {[%clk 0:01:11.9]} 23...
dxe3 {[%clk 0:02:06.4]} 24. Nxd8 {[%clk 0:01:04.2]} 24... exf2+ {[%clk
0:02:08.3]} 25. Kh1 {[%clk 0:01:02.8]} 25... Rxd8 {[%clk 0:01:53.7]} 26. Nc3
{[%clk 0:01:01.8]} 26... Nd4 {[%clk 0:01:49.2]} 27. Rxf2 {[%clk 0:00:58.5]}
27... Nxe2 {[%clk 0:01:32]} 28. Rxd8+ {[%clk 0:00:55.3]} 28... Qxd8 {[%clk
0:01:33.9]} 29. Rxe2 {[%clk 0:00:54.3]} 29... Qf6 {[%clk 0:01:30.2]} 30. g4
{[%clk 0:00:48.9]} 30... Bc4 {[%clk 0:01:25.4]} 31. gxf5 {[%clk 0:00:43]} 31...
Bxe2 {[%clk 0:01:24]} 32. Nxe2 {[%clk 0:00:44.9]} 32... Bf2 {[%clk 0:01:03.6]}
33. Qb3+ {[%clk 0:00:40.2]} 33... Kg7 {[%clk 0:01:03.7]} 34. g4 {[%clk
0:00:40.9]} 34... h5 {[%clk 0:00:51.2]} 35. Qd5 {[%clk 0:00:30.2]} 35... hxg4
{[%clk 0:00:50.2]} 36. Qxe4 {[%clk 0:00:30.7]} 36... g3 {[%clk 0:00:42]} 37. Kg2
{[%clk 0:00:30.1]} 37... Qxb2 {[%clk 0:00:39.8]} 38. Qe7+ {[%clk 0:00:29.7]}
38... Kh6 {[%clk 0:00:39.2]} 39. f6 {[%clk 0:00:29.3]} 39... Qxc2 {[%clk
0:00:32.6]} 40. Qe6 {[%clk 0:00:25.1]} 40... Kg6 {[%clk 0:00:24.2]} 41. f7+
{[%clk 0:00:09.7]} 41... Kg7 {[%clk 0:00:24.4]} 42. Nxg3 {[%clk 0:00:10.5]}
42... Bxg3+ {[%clk 0:00:23.3]} 43. Kxg3 {[%clk 0:00:12.4]} 43... Qc3+ {[%clk
0:00:21.8]} 44. Kg4 {[%clk 0:00:13.7]} 44... Qc4+ {[%clk 0:00:22.8]} 45. Kf5
{[%clk 0:00:09.1]} 45... Qxe6+ {[%clk 0:00:22.8]} 46. Kxe6 {[%clk 0:00:11]}
46... Kf8 {[%clk 0:00:24.1]} 47. Kf5 {[%clk 0:00:10.7]} 47... a5 {[%clk
0:00:25.3]} 48. Kxg5 {[%clk 0:00:09.6]} 48... b4 {[%clk 0:00:27.2]} 49. Kf4
{[%clk 0:00:08.8]} 49... bxa3 {[%clk 0:00:27.4]} 50. Ke3 {[%clk 0:00:10.7]}
50... a2 {[%clk 0:00:29.1]} 51. Kd2 {[%clk 0:00:12.6]} 51... a1=Q {[%clk
0:00:30.4]} 0-1

[Event "*** Qualifier 1: Titled Tuesday 3|2 Blitz"]
[Site "Chess.com"]
[Date "2017.04.04"]
[Round "4"]
[White "TooOldTooSlow70"]
[Black "politeplayer"]
[Result "1-0"]
[WhiteElo "2290"]
[BlackElo "2104"]
[TimeControl "180+2"]
[EndTime "13:53:20 PDT"]
[Termination "TooOldTooSlow70 won by checkmate"]

1. Nf3 {[%clk 0:03:02]} 1... d5 {[%clk 0:02:58.6]} 2. g3 {[%clk 0:03:00.4]} 2...
Nf6 {[%clk 0:02:57.7]} 3. Bg2 {[%clk 0:03:02]} 3... e6 {[%clk 0:02:58]} 4. O-O
{[%clk 0:03:03.6]} 4... c5 {[%clk 0:02:53.9]} 5. c4 {[%clk 0:03:02.8]} 5... Nc6
{[%clk 0:02:54.6]} 6. cxd5 {[%clk 0:03:03.8]} 6... exd5 {[%clk 0:02:55.4]} 7. d4
{[%clk 0:03:05.4]} 7... Be7 {[%clk 0:02:56]} 8. Nc3 {[%clk 0:03:06.9]} 8... O-O
{[%clk 0:02:55.7]} 9. Bg5 {[%clk 0:03:08.5]} 9... c4 {[%clk 0:02:56.8]} 10. b3
{[%clk 0:03:07.6]} 10... Qa5 {[%clk 0:02:54.7]} 11. Bd2 {[%clk 0:03:08.4]} 11...
Qa6 {[%clk 0:02:47.6]} 12. bxc4 {[%clk 0:02:57.8]} 12... Qxc4 {[%clk 0:02:47]}
13. Ne5 {[%clk 0:02:54.2]} 13... Qxd4 {[%clk 0:02:40.9]} 14. Nd3 {[%clk
0:02:52.2]} 14... Be6 {[%clk 0:02:31.3]} 15. Rc1 {[%clk 0:02:46.7]} 15... Ne4
{[%clk 0:02:22.6]} 16. Be1 {[%clk 0:02:17.1]} 16... Ba3 {[%clk 0:02:10.2]} 17.
Rc2 {[%clk 0:02:12.4]} 17... Nxc3 {[%clk 0:01:43.2]} 18. Bxc3 {[%clk 0:02:14.3]}
18... Qa4 {[%clk 0:01:39.8]} 19. Qb1 {[%clk 0:01:49.4]} 19... Rad8 {[%clk
0:01:27.6]} 20. Nb2 {[%clk 0:01:30.1]} 20... Qa6 {[%clk 0:01:20.7]} 21. Nd3
{[%clk 0:01:27.9]} 21... Bf5 {[%clk 0:01:17.9]} 22. Rd1 {[%clk 0:01:24.6]} 22...
Rfe8 {[%clk 0:01:17.7]} 23. Bf1 {[%clk 0:01:17.3]} 23... d4 {[%clk 0:01:14.5]}
24. Be1 {[%clk 0:01:12.6]} 24... Bf8 {[%clk 0:01:01.6]} 25. Rb2 {[%clk
0:01:10.5]} 25... b6 {[%clk 0:00:58.9]} 26. Qc1 {[%clk 0:01:08.3]} 26... Ba3
{[%clk 0:00:53.3]} 27. Qxc6 {[%clk 0:01:05]} 27... Bxd3 {[%clk 0:00:51.9]} 28.
Rbd2 {[%clk 0:00:24.4]} 28... Be4 {[%clk 0:00:50.7]} 29. Qc7 {[%clk 0:00:20.8]}
29... Bd6 {[%clk 0:00:46]} 30. Qc1 {[%clk 0:00:21.5]} 30... Be5 {[%clk
0:00:33.6]} 31. f3 {[%clk 0:00:22.4]} 31... Ba8 {[%clk 0:00:30.8]} 32. Bf2
{[%clk 0:00:24]} 32... Qa4 {[%clk 0:00:24.2]} 33. e4 {[%clk 0:00:18.5]} 33...
Rc8 {[%clk 0:00:20.5]} 34. Qb1 {[%clk 0:00:14.5]} 34... Red8 {[%clk 0:00:21]}
35. Bd3 {[%clk 0:00:13.8]} 35... f5 {[%clk 0:00:20.2]} 36. Re1 {[%clk
0:00:11.1]} 36... f4 {[%clk 0:00:20.4]} 37. Kg2 {[%clk 0:00:09.1]} 37... Rc3
{[%clk 0:00:20.6]} 38. Bc2 {[%clk 0:00:07.2]} 38... Qa3 {[%clk 0:00:20.2]} 39.
Bb3+ {[%clk 0:00:08.7]} 39... Kh8 {[%clk 0:00:19.6]} 40. Red1 {[%clk 0:00:09.1]}
40... Qc5 {[%clk 0:00:10.5]} 41. gxf4 {[%clk 0:00:10]} 41... Bxf4 {[%clk
0:00:10.6]} 42. Rxd4 {[%clk 0:00:11.1]} 42... Qg5+ {[%clk 0:00:10.8]} 43. Kh1
{[%clk 0:00:10.7]} 43... Rxd4 {[%clk 0:00:10.5]} 44. Rxd4 {[%clk 0:00:11.5]}
44... Rxf3 {[%clk 0:00:11.4]} 45. Qd1 {[%clk 0:00:07.7]} 45... Bc7 {[%clk
0:00:02.7]} 46. Qxf3 {[%clk 0:00:07.9]} 46... Qc1+ {[%clk 0:00:03.6]} 47. Kg2
{[%clk 0:00:08.4]} 47... Qg5+ {[%clk 0:00:03.6]} 48. Bg3 {[%clk 0:00:09.7]}
48... h6 {[%clk 0:00:02.4]} 49. Qf8+ {[%clk 0:00:10.1]} 49... Kh7 {[%clk
0:00:03.5]} 50. Bg8+ {[%clk 0:00:11.2]} 50... Kg6 {[%clk 0:00:04.4]} 51. Qf7#
{[%clk 0:00:11.6]} 1-0

[Event "*** Qualifier 1: Titled Tuesday 3|2 Blitz"]
[Site "Chess.com"]
[Date "2017.04.04"]
[Round "4"]
[White "PowerThinking2650"]
[Black "Vamostodorecto"]
[Result "1-0"]
[WhiteElo "2174"]
[BlackElo "2334"]
[TimeControl "180+2"]
[EndTime "13:53:23 PDT"]
[Termination "PowerThinking2650 won by resignation"]

1. e4 {[%clk 0:03:02]} 1... e5 {[%clk 0:03:00.2]} 2. Nf3 {[%clk 0:03:02.1]} 2...
Nc6 {[%clk 0:03:01]} 3. Nc3 {[%clk 0:03:02.9]} 3... Nf6 {[%clk 0:03:01.2]} 4. d4
{[%clk 0:03:04.4]} 4... exd4 {[%clk 0:03:01.2]} 5. Nxd4 {[%clk 0:03:06.1]} 5...
Bb4 {[%clk 0:02:58.7]} 6. Nxc6 {[%clk 0:03:06.7]} 6... bxc6 {[%clk 0:03:00.6]}
7. Bd3 {[%clk 0:03:07.3]} 7... d5 {[%clk 0:03:01.1]} 8. exd5 {[%clk 0:03:08.3]}
8... cxd5 {[%clk 0:03:03]} 9. O-O {[%clk 0:03:09.3]} 9... O-O {[%clk 0:03:02.9]}
10. Bg5 {[%clk 0:03:10.6]} 10... c6 {[%clk 0:03:04]} 11. Qf3 {[%clk 0:03:11.5]}
11... Bd6 {[%clk 0:03:03.3]} 12. Bxf6 {[%clk 0:03:08.4]} 12... Qxf6 {[%clk
0:03:03.5]} 13. Qxf6 {[%clk 0:03:09.3]} 13... gxf6 {[%clk 0:03:05.4]} 14. Ne2
{[%clk 0:03:10]} 14... Rb8 {[%clk 0:03:05.1]} 15. b3 {[%clk 0:03:09.9]} 15...
Be5 {[%clk 0:02:56]} 16. Rad1 {[%clk 0:02:58.9]} 16... Re8 {[%clk 0:02:37.8]}
17. Ng3 {[%clk 0:02:53.4]} 17... c5 {[%clk 0:02:31.9]} 18. c4 {[%clk 0:02:48.3]}
18... dxc4 {[%clk 0:02:07.1]} 19. Bxc4 {[%clk 0:02:44]} 19... Be6 {[%clk
0:02:05.2]} 20. Bxe6 {[%clk 0:01:57.1]} 20... Rxe6 {[%clk 0:02:07.1]} 21. Nf5
{[%clk 0:01:47.3]} 21... h5 {[%clk 0:01:44.8]} 22. Rd7 {[%clk 0:01:42.5]} 22...
Ra6 {[%clk 0:01:39]} 23. Nh6+ {[%clk 0:01:12.2]} 23... Kg7 {[%clk 0:00:53.8]}
24. Nxf7 {[%clk 0:01:11.5]} 24... Kg6 {[%clk 0:00:54.6]} 25. Nxe5+ {[%clk
0:01:05]} 25... fxe5 {[%clk 0:00:56.5]} 26. Rd2 {[%clk 0:01:06.5]} 26... Kf5
{[%clk 0:00:55.1]} 27. Rc1 {[%clk 0:01:05.7]} 27... Rb5 {[%clk 0:00:54.4]} 28.
f3 {[%clk 0:01:04.2]} 28... Ra3 {[%clk 0:00:49.9]} 29. Rc4 {[%clk 0:00:58.4]}
29... Rba5 {[%clk 0:00:47.8]} 30. Rcc2 {[%clk 0:00:55.7]} 30... Rb5 {[%clk
0:00:46.6]} 31. Re2 {[%clk 0:00:55.5]} 31... a5 {[%clk 0:00:46.3]} 32. Rc4
{[%clk 0:00:50.7]} 32... a4 {[%clk 0:00:42.3]} 33. bxa4 {[%clk 0:00:45.6]} 33...
Rb1+ {[%clk 0:00:40.7]} 34. Kf2 {[%clk 0:00:45.9]} 34... Ra1 {[%clk 0:00:26.4]}
35. Rxc5 {[%clk 0:00:46.7]} 35... R1xa2 {[%clk 0:00:26.9]} 36. Rxe5+ {[%clk
0:00:47.2]} 36... Kg6 {[%clk 0:00:27.4]} 37. Re4 {[%clk 0:00:46.2]} 37... Rxa4
{[%clk 0:00:25.7]} 38. Rxa4 {[%clk 0:00:46.8]} 38... Rxa4 {[%clk 0:00:25.9]} 39.
Re5 {[%clk 0:00:43]} 39... Ra2+ {[%clk 0:00:25.6]} 40. Kg3 {[%clk 0:00:42.4]}
40... Rb2 {[%clk 0:00:27]} 41. Kh3 {[%clk 0:00:38.6]} 41... Rb3 {[%clk
0:00:25.1]} 42. Kh4 {[%clk 0:00:32.2]} 42... Rb2 {[%clk 0:00:24.6]} 43. Rg5+
{[%clk 0:00:33]} 43... Kf6 {[%clk 0:00:23.9]} 44. Kxh5 {[%clk 0:00:31.9]} 44...
Rb8 {[%clk 0:00:21.5]} 45. Kh4 {[%clk 0:00:28.9]} 45... Rh8+ {[%clk 0:00:20.7]}
46. Rh5 {[%clk 0:00:29.7]} 46... Rg8 {[%clk 0:00:22.2]} 47. g3 {[%clk
0:00:30.4]} 47... Re8 {[%clk 0:00:21]} 48. f4 {[%clk 0:00:30.6]} 48... Re2
{[%clk 0:00:21.9]} 49. h3 {[%clk 0:00:31.7]} 49... Rg2 {[%clk 0:00:20.8]} 50.
Kg4 {[%clk 0:00:32.3]} 50... Rb2 {[%clk 0:00:20.9]} 51. Rh6+ {[%clk 0:00:33.2]}
51... Kg7 {[%clk 0:00:21.4]} 52. Ra6 {[%clk 0:00:33.8]} 52... Rb5 {[%clk
0:00:21.5]} 53. h4 {[%clk 0:00:34.8]} 53... Rc5 {[%clk 0:00:22]} 54. f5 {[%clk
0:00:35.7]} 54... Rc4+ {[%clk 0:00:22]} 55. Kg5 {[%clk 0:00:36.9]} 55... Rc5
{[%clk 0:00:22.9]} 56. g4 {[%clk 0:00:38.1]} 56... Rb5 {[%clk 0:00:23.6]} 57.
Ra7+ {[%clk 0:00:39.1]} 57... Kg8 {[%clk 0:00:24.3]} 58. Kg6 {[%clk 0:00:38.1]}
58... Kf8 {[%clk 0:00:21.9]} 59. f6 {[%clk 0:00:37.3]} 1-0